[Event "FIDE WCCC Girls-10 2024"]
[Site "Montesilvano"]
[Date "2024.11.20"]
[Round "6.27"]
[White "Guerra Mansilla, Maria Ignacia"]
[Black "Trzcinska, Weronika"]
[Result "0-1"]
[Annotator "NA RC"]
[ECO "A29"]
[WhiteElo "1545"]
[BlackElo "1653"]
[PlyCount "52"]
[EventDate "2024.11.18"]
[EventType "swiss"]
[EventCountry "ITA"]
[SourceTitle "playchess.com"]
[Source "ChessBase"]
[SourceQuality "1"]
[TimeControl "5400+30"]

1. c4 {[%emt 0:00:02]} e5 {[%emt 0:00:32]} 2. d3 {[%emt 0:00:07]} Nc6 {[%emt 0:01:08]} 3. Nc3 {[%emt 0:00:46]} Nf6 {[%emt 0:00:30]} 4. a3 {[%emt 0:00:11]} a5 {[%emt 0:01:12]} 5. Nf3 {[%emt 0:00:43]} Bc5 {[%emt 0:05:16]} 6. g3 {[%emt 0:09:14]} O-O {[%emt 0:03:12]} 7. Bg2 {[%emt 0:02:44]} h6 {[%emt 0:06:47]} 8. O-O {[%emt 0:01:43]} d6 {[%emt 0:03:09]} 9. Bd2 {[%emt 0:06:01]} Nd4 {[%emt 0:05:46]} 10. Nxd4 {[%emt 0:04:39]} Bxd4 {[%emt 0:01:26]} 11. e3 {[%emt 0:06:20]} Bxc3 {[%emt 0:05:33]} 12. Bxc3 {[%emt 0:00:11]} c6 {[%emt 0:02:20]} 13. Qc2 {[%emt 0:02:16]} Bd7 {[%emt 0:07:38]} 14. h3 {[%emt 0:05:11]} Qc8 {[%emt 0:05:01]} 15. Kh2 {[%emt 0:01:25]} c5 {[%emt 0:01:45]} 16. Rac1 {[%emt 0:02:58]} Bc6 {[%emt 0:01:32]} 17. Qd2 {[%emt 0:17:03]} Bxg2 {[%emt 0:00:18]} 18. Kxg2 {[%emt 0:00:07]} Qc6+ {[%emt 0:00:24]} 19. Kg1 {[%emt 0:01:25]} Nh7 {[%emt 0:04:33]} 20. e4 {[%emt 0:04:44]} b6 {[%emt 0:03:18]} 21. Qe2 {[%emt 0:33:10]} Qd7 {[%emt 0:03:37]} 22. Bd2 {[%emt 0:00:00]} Qxh3 {[%emt 0:03:54]} 23. Qf3 {[%emt 0:00:00]} f6 {[%emt 0:05:38]} 24. Qf5 {[%emt 0:00:00]} Qxf5 {[%emt 0:00:43]} 25. exf5 {[%emt 0:00:00]} Ng5 {[%emt 0:00:15]} 26. b4 {[%emt 0:00:00]} Nf3+ {[%emt 0:28:03]} 0-1

[Event "FIDE WCCC Girls-10 2024"]
[Site "Montesilvano"]
[Date "2024.11.20"]
[Round "6.28"]
[White "Foong, Livia"]
[Black "Afandi, Sadagul"]
[Result "1/2-1/2"]
[Annotator "NA RC"]
[ECO "D02"]
[WhiteElo "1461"]
[BlackElo "1625"]
[PlyCount "45"]
[EventDate "2024.11.18"]
[EventType "swiss"]
[EventCountry "ITA"]
[SourceTitle "playchess.com"]
[Source "ChessBase"]
[SourceQuality "1"]
[TimeControl "5400+30"]

1. d4 {[%emt 0:00:03]} d5 {[%emt 0:00:25]} 2. Nf3 {[%emt 0:00:12]} Nf6 {[%emt 0:00:08]} 3. Bf4 {[%emt 0:00:10]} c5 {[%emt 0:00:06]} 4. e3 {[%emt 0:00:16]} Nc6 {[%emt 0:00:35]} 5. Be2 {[%emt 0:00:19]} Bg4 {[%emt 0:00:09]} 6. Nbd2 {[%emt 0:00:42]} cxd4 {[%emt 0:00:19]} 7. Nxd4 {[%emt 0:00:26]} Bxe2 {[%emt 0:03:47]} 8. Nxe2 {[%emt 0:01:33]} e5 {[%emt 0:03:46]} 9. Bg5 {[%emt 0:00:22]} Be7 {[%emt 0:01:16]} 10. O-O {[%emt 0:00:15]} O-O {[%emt 0:00:35]} 11. c4 {[%emt 0:01:10]} d4 {[%emt 0:08:14]} 12. exd4 {[%emt 0:01:35]} Nxd4 {[%emt 0:03:18]} 13. Nxd4 {[%emt 0:01:33]} Qxd4 {[%emt 0:02:54]} 14. Qb3 {[%emt 0:00:50]} b6 {[%emt 0:11:18]} 15. Be3 {[%emt 0:00:29]} Qd7 {[%emt 0:00:58]} 16. Rfd1 {[%emt 0:00:39]} Ng4 {[%emt 0:14:11]} 17. Nf3 {[%emt 0:00:57]} Qc7 {[%emt 0:02:32]} 18. Qc2 {[%emt 0:01:16]} Nxe3 {[%emt 0:05:55]} 19. fxe3 {[%emt 0:01:18]} Rfd8 {[%emt 0:03:47]} 20. Qe4 {[%emt 0:01:20]} f6 {[%emt 0:05:04]} 21. b3 {[%emt 0:01:46]} Rxd1+ {[%emt 0:08:47]} 22. Rxd1 {[%emt 0:00:24]} Rd8 {[%emt 0:00:14]} 23. Rd5 {[%emt 0:01:21]} 1/2-1/2

[Event "FIDE WCCC Girls-10 2024"]
[Site "Montesilvano"]
[Date "2024.11.20"]
[Round "6.29"]
[White "Rosset, Anna"]
[Black "Kocherha, Yelizavieta"]
[Result "1-0"]
[Annotator "NA RC"]
[ECO "B19"]
[WhiteElo "1814"]
[BlackElo "1523"]
[PlyCount "65"]
[EventDate "2024.11.18"]
[EventType "swiss"]
[EventCountry "ITA"]
[SourceTitle "playchess.com"]
[Source "ChessBase"]
[SourceQuality "1"]
[TimeControl "5400+30"]

1. e4 {[%emt 0:00:01]} c6 {[%emt 0:00:10]} 2. d4 {[%emt 0:00:04]} d5 {[%emt 0:00:17]} 3. Nc3 {[%emt 0:00:03]} dxe4 {[%emt 0:00:26]} 4. Nxe4 {[%emt 0:00:03]} Bf5 {[%emt 0:00:46]} 5. Ng3 {[%emt 0:00:05]} Bg6 {[%emt 0:00:26]} 6. h4 {[%emt 0:00:08]} h6 {[%emt 0:00:33]} 7. Nf3 {[%emt 0:00:13]} Nd7 {[%emt 0:00:36]} 8. h5 {[%emt 0:00:10]} Bh7 {[%emt 0:00:29]} 9. Bd3 {[%emt 0:00:13]} Bxd3 {[%emt 0:00:40]} 10. Qxd3 {[%emt 0:00:03]} e6 {[%emt 0:00:36]} 11. Bf4 {[%emt 0:00:25]} Qa5+ {[%emt 0:00:38]} 12. Bd2 {[%emt 0:01:04]} Bb4 {[%emt 0:00:32]} 13. c3 {[%emt 0:01:22]} Be7 {[%emt 0:00:27]} 14. Ne4 {[%emt 0:15:17]} Ngf6 {[%emt 0:01:10]} 15. c4 {[%emt 0:02:39]} Qc7 {[%emt 0:01:07]} 16. Nxf6+ {[%emt 0:02:58]} Nxf6 {[%emt 0:00:49]} 17. O-O-O {[%emt 0:00:24]} Rd8 {[%emt 0:01:45]} 18. Qe2 {[%emt 0:06:16]} O-O {[%emt 0:03:07]} 19. Kb1 {[%emt 0:01:54]} c5 {[%emt 0:02:00]} 20. dxc5 {[%emt 0:04:24]} Qxc5 {[%emt 0:00:55]} 21. Rdg1 {[%emt 0:02:26]} Qf5+ {[%emt 0:07:47]} 22. Ka1 {[%emt 0:02:24]} Ne4 {[%emt 0:04:19]} 23. g4 {[%emt 0:04:35]} Qh7 {[%emt 0:00:50]} 24. Be3 {[%emt 0:06:08]} Bc5 {[%emt 0:15:31]} 25. g5 {[%emt 0:06:55]} Bxe3 {[%emt 0:08:06]} 26. Qxe3 {[%emt 0:01:48]} hxg5 {[%emt 0:02:16]} 27. Nxg5 {[%emt 0:00:49]} Nxg5 {[%emt 0:00:24]} 28. Rxg5 {[%emt 0:00:25]} Kh8 {[%emt 0:02:18]} 29. a3 {[%emt 0:13:18]} b6 {[%emt 0:01:38]} 30. f4 {[%emt 0:03:21]} Rd3 {[%emt 0:01:27]} 31. h6 {[%emt 0:07:04]} Kg8 {[%emt 0:03:46]} 32. Qxd3 {[%emt 0:03:14]} Qxd3 {[%emt 0:07:33]} 33. hxg7 {[%emt 0:00:08]} 1-0

[Event "FIDE WCCC Girls-10 2024"]
[Site "Montesilvano"]
[Date "2024.11.20"]
[Round "6.30"]
[White "Lisboa, Maria Eduarda Mazzar"]
[Black "Nguyen, Lam Vy Le"]
[Result "0-1"]
[Annotator "NA RC"]
[ECO "C70"]
[WhiteElo "1490"]
[BlackElo "1728"]
[PlyCount "153"]
[EventDate "2024.11.18"]
[EventType "swiss"]
[EventCountry "ITA"]
[SourceTitle "playchess.com"]
[Source "ChessBase"]
[SourceQuality "1"]
[TimeControl "5400+30"]

1. e4 {[%emt 0:00:02]} e5 {[%emt 0:00:08]} 2. Nf3 {[%emt 0:00:15]} Nc6 {[%emt 0:00:12]} 3. Bb5 {[%emt 0:00:04]} a6 {[%emt 0:00:09]} 4. Ba4 {[%emt 0:00:03]} f5 {[%emt 0:00:57]} 5. d3 {[%emt 0:00:19]} fxe4 {[%emt 0:00:05]} 6. dxe4 {[%emt 0:00:10]} b5 {[%emt 0:00:27]} 7. Bb3 {[%emt 0:00:36]} Nf6 {[%emt 0:00:39]} 8. Nbd2 {[%emt 0:00:26]} Be7 {[%emt 0:01:06]} 9. O-O {[%emt 0:08:21]} Na5 {[%emt 0:10:20]} 10. Nxe5 {[%emt 0:11:54]} Nxb3 {[%emt 0:00:10]} 11. axb3 {[%emt 0:00:08]} Bb7 {[%emt 0:01:47]} 12. Re1 {[%emt 0:03:22]} O-O {[%emt 0:02:37]} 13. h3 {[%emt 0:33:23]} Bc5 {[%emt 0:14:21]} 14. Nd3 {[%emt 0:05:12]} Bb6 {[%emt 0:05:44]} 15. b4 {[%emt 0:17:58]} d6 {[%emt 0:09:10]} 16. c3 {[%emt 0:10:56]} Kh8 {[%emt 0:11:18]} 17. Kh1 {[%emt 0:04:09]} Qd7 {[%emt 0:02:41]} 18. f3 {[%emt 0:00:49]} Rae8 {[%emt 0:02:08]} 19. Nf1 {[%emt 0:00:27]} Nh5 {[%emt 0:07:30]} 20. g4 {[%emt 0:01:05]} Nf6 {[%emt 0:00:46]} 21. Be3 {[%emt 0:00:09]} Bxe3 {[%emt 0:01:35]} 22. Rxe3 {[%emt 0:00:18]} Qf7 {[%emt 0:02:16]} 23. Ng3 {[%emt 0:00:48]} Nd7 {[%emt 0:00:57]} 24. Qe2 {[%emt 0:00:58]} Nb6 {[%emt 0:00:39]} 25. Ne1 {[%emt 0:00:25]} Nc4 {[%emt 0:00:16]} 26. Rd3 {[%emt 0:00:05]} d5 {[%emt 0:01:30]} 27. Ng2 {[%emt 0:00:36]} Qe6 {[%emt 0:01:59]} 28. Re1 {[%emt 0:00:31]} Qf7 {[%emt 0:01:38]} 29. Rf1 {[%emt 0:00:37]} Qg6 {[%emt 0:01:15]} 30. Re1 {[%emt 0:00:29]} Qh6 {[%emt 0:01:54]} 31. h4 {[%emt 0:00:19]} Qg6 {[%emt 0:00:58]} 32. Rd4 {[%emt 0:00:48]} Qf7 {[%emt 0:01:54]} 33. b3 {[%emt 0:00:44]} Nb6 {[%emt 0:01:11]} 34. Rc1 {[%emt 0:00:18]} Qxf3 {[%emt 0:00:54]} 35. Qxf3 {[%emt 0:00:03]} Rxf3 {[%emt 0:00:07]} 36. Kh2 {[%emt 0:00:31]} dxe4 {[%emt 0:00:32]} 37. Re1 {[%emt 0:00:11]} Rxc3 {[%emt 0:01:26]} 38. Nxe4 {[%emt 0:00:16]} Bxe4 {[%emt 0:00:37]} 39. Rexe4 {[%emt 0:00:11]} Rf8 {[%emt 0:00:56]} 40. Rf4 {[%emt 0:00:15]} Kg8 {[%emt 0:00:28]} 41. Rxf8+ {[%emt 0:01:06]} Kxf8 {[%emt 0:00:06]} 42. Rf4+ {[%emt 0:00:11]} Ke7 {[%emt 0:00:25]} 43. Re4+ {[%emt 0:00:18]} Kf6 {[%emt 0:00:31]} 44. Rf4+ {[%emt 0:00:42]} Ke7 {[%emt 0:00:18]} 45. Re4+ {[%emt 0:00:06]} Kf8 {[%emt 0:00:07]} 46. Rf4+ {[%emt 0:00:05]} Kg8 {[%emt 0:00:10]} 47. Rd4 {[%emt 0:00:13]} h6 {[%emt 0:00:23]} 48. h5 {[%emt 0:00:08]} Rxb3 {[%emt 0:00:16]} 49. Nf4 {[%emt 0:00:40]} Kf7 {[%emt 0:00:32]} 50. Ng6 {[%emt 0:00:25]} Kf6 {[%emt 0:01:30]} 51. Kg2 {[%emt 0:02:15]} Kg5 {[%emt 0:00:46]} 52. Ne5 {[%emt 0:00:35]} Ra3 {[%emt 0:00:56]} 53. Ng6 {[%emt 0:01:24]} a5 {[%emt 0:00:36]} 54. Rf4 {[%emt 0:00:15]} axb4 {[%emt 0:00:43]} 55. Rxb4 {[%emt 0:01:26]} c6 {[%emt 0:00:31]} 56. Re4 {[%emt 0:00:00]} Ra4 {[%emt 0:00:29]} 57. Re5+ {[%emt 0:00:00]} Kxg4 {[%emt 0:00:24]} 58. Rc5 {[%emt 0:00:24]} Ra2+ {[%emt 0:00:06]} 59. Kf1 {[%emt 0:00:06]} Nc4 {[%emt 0:00:54]} 60. Rxc6 {[%emt 0:00:43]} Kxh5 {[%emt 0:00:22]} 61. Nf4+ {[%emt 0:00:40]} Kg4 {[%emt 0:00:26]} 62. Nd3 {[%emt 0:00:32]} Rd2 {[%emt 0:01:15]} 63. Nb4 {[%emt 0:01:03]} Kf3 {[%emt 0:00:14]} 64. Ke1 {[%emt 0:00:06]} Rb2 {[%emt 0:00:18]} 65. Rxc4 {[%emt 0:00:37]} bxc4 {[%emt 0:00:04]} 66. Nc6 {[%emt 0:00:13]} c3 {[%emt 0:00:06]} 67. Ne5+ {[%emt 0:00:08]} Ke4 {[%emt 0:00:07]} 68. Nc4 {[%emt 0:00:12]} Kd4 {[%emt 0:00:15]} 69. Nd6 {[%emt 0:00:10]} Kd3 {[%emt 0:00:05]} 70. Nf5 {[%emt 0:02:05]} c2 {[%emt 0:00:04]} 71. Kf2 {[%emt 0:00:14]} c1=Q+ {[%emt 0:00:08]} 72. Kf3 {[%emt 0:00:22]} Qf1+ {[%emt 0:00:08]} 73. Kg4 {[%emt 0:00:08]} Rb4+ {[%emt 0:00:09]} 74. Kg3 {[%emt 0:00:13]} Qf4+ {[%emt 0:00:05]} 75. Kg2 {[%emt 0:00:33]} Rb2+ {[%emt 0:00:10]} 76. Kg1 {[%emt 0:00:20]} Qf2+ {[%emt 0:00:03]} 77. Kh1 {[%emt 0:02:11]} 0-1

[Event "FIDE WCCC Girls-10 2024"]
[Site "Montesilvano"]
[Date "2024.11.20"]
[Round "6.31"]
[White "Serradell Munoz, Silvia"]
[Black "Minzat, Victoria"]
[Result "1/2-1/2"]
[Annotator "NA RC"]
[ECO "C47"]
[WhiteElo "1670"]
[BlackElo "1505"]
[PlyCount "142"]
[EventDate "2024.11.18"]
[EventType "swiss"]
[EventCountry "ITA"]
[SourceTitle "playchess.com"]
[Source "ChessBase"]
[SourceQuality "1"]
[TimeControl "5400+30"]

1. e4 {[%emt 0:00:14]} e5 {[%emt 0:00:06]} 2. Nf3 {[%emt 0:00:24]} Nc6 {[%emt 0:00:15]} 3. Nc3 {[%emt 0:00:24]} Nf6 {[%emt 0:01:19]} 4. h3 {[%emt 0:00:49]} Bc5 {[%emt 0:03:20]} 5. Nxe5 {[%emt 0:02:57]} Bxf2+ {[%emt 0:03:27]} 6. Kxf2 {[%emt 0:00:51]} Nxe5 {[%emt 0:00:12]} 7. d4 {[%emt 0:01:38]} Nc6 {[%emt 0:00:42]} 8. e5 {[%emt 0:00:59]} Ng8 {[%emt 0:00:38]} 9. Qg4 {[%emt 0:03:35]} g6 {[%emt 0:01:29]} 10. Bg5 {[%emt 0:02:15]} Nge7 {[%emt 0:00:42]} 11. Bf6 {[%emt 0:03:47]} Rg8 {[%emt 0:00:57]} 12. d5 {[%emt 0:01:47]} d6 {[%emt 0:01:27]} 13. Qa4 {[%emt 0:02:08]} Qd7 {[%emt 0:01:40]} 14. Bxe7 {[%emt 0:01:04]} Nxe7 {[%emt 0:00:39]} 15. Qxd7+ {[%emt 0:01:47]} Bxd7 {[%emt 0:00:20]} 16. exd6 {[%emt 0:00:22]} cxd6 {[%emt 0:00:17]} 17. Ne4 {[%emt 0:00:17]} Nc8 {[%emt 0:00:46]} 18. Nf6+ {[%emt 0:00:23]} Kf8 {[%emt 0:00:10]} 19. Nxg8 {[%emt 0:00:26]} Kxg8 {[%emt 0:00:07]} 20. Bd3 {[%emt 0:00:33]} Nb6 {[%emt 0:00:19]} 21. c4 {[%emt 0:00:20]} Rc8 {[%emt 0:00:38]} 22. b3 {[%emt 0:00:30]} Rf8 {[%emt 0:00:54]} 23. Rhf1 {[%emt 0:00:48]} Nc8 {[%emt 0:00:10]} 24. Rae1 {[%emt 0:01:17]} Kg7 {[%emt 0:00:15]} 25. Kg3 {[%emt 0:00:42]} b6 {[%emt 0:00:34]} 26. Be2 {[%emt 0:03:15]} h5 {[%emt 0:00:38]} 27. Kh4 {[%emt 0:00:51]} f6 {[%emt 0:00:43]} 28. g4 {[%emt 0:00:34]} g5+ {[%emt 0:00:19]} 29. Kg3 {[%emt 0:00:25]} h4+ {[%emt 0:00:09]} 30. Kf2 {[%emt 0:00:06]} Rf7 {[%emt 0:00:56]} 31. Bd3 {[%emt 0:01:27]} Ne7 {[%emt 0:00:38]} 32. Ke2 {[%emt 0:00:46]} Bc8 {[%emt 0:01:27]} 33. Kd2 {[%emt 0:00:30]} Bd7 {[%emt 0:01:31]} 34. Kc3 {[%emt 0:00:42]} Kg8 {[%emt 0:01:42]} 35. Kb4 {[%emt 0:01:29]} Kg7 {[%emt 0:01:46]} 36. a4 {[%emt 0:00:59]} a5+ {[%emt 0:00:36]} 37. Ka3 {[%emt 0:01:02]} Ng8 {[%emt 0:02:10]} 38. Bf5 {[%emt 0:00:55]} Bxf5 {[%emt 0:01:09]} 39. Rxf5 {[%emt 0:00:30]} Rd7 {[%emt 0:00:31]} 40. Re6 {[%emt 0:01:27]} Kf7 {[%emt 0:00:44]} 41. b4 {[%emt 0:02:13]} Kg6 {[%emt 0:00:48]} 42. bxa5 {[%emt 0:00:27]} bxa5 {[%emt 0:00:12]} 43. Re8 {[%emt 0:02:36]} Ne7 {[%emt 0:01:19]} 44. Rf1 {[%emt 0:00:22]} Kf7 {[%emt 0:00:59]} 45. Ra8 {[%emt 0:00:15]} Rc7 {[%emt 0:00:10]} 46. Rc1 {[%emt 0:01:23]} Nxd5 {[%emt 0:00:57]} 47. Rxa5 {[%emt 0:00:41]} Nb6 {[%emt 0:01:53]} 48. c5 {[%emt 0:01:15]} Nd7 {[%emt 0:00:39]} 49. c6 {[%emt 0:00:28]} Ne5 {[%emt 0:00:59]} 50. Ra6 {[%emt 0:00:50]} Ke6 {[%emt 0:02:07]} 51. Rb6 {[%emt 0:02:30]} d5 {[%emt 0:01:10]} 52. Kb3 {[%emt 0:02:36]} Nc4 {[%emt 0:00:23]} 53. Rxc4 {[%emt 0:01:37]} dxc4+ {[%emt 0:00:20]} 54. Kxc4 {[%emt 0:00:17]} Kd6 {[%emt 0:00:50]} 55. Kd4 {[%emt 0:00:38]} Rc8 {[%emt 0:02:08]} 56. a5 {[%emt 0:00:41]} Rc7 {[%emt 0:00:45]} 57. a6 {[%emt 0:00:13]} f5 {[%emt 0:02:58]} 58. gxf5 {[%emt 0:00:30]} g4 {[%emt 0:00:13]} 59. hxg4 {[%emt 0:00:10]} h3 {[%emt 0:00:23]} 60. Rb3 {[%emt 0:00:35]} Rh7 {[%emt 0:00:40]} 61. a7 {[%emt 0:00:11]} Rxa7 {[%emt 0:02:55]} 62. Rxh3 {[%emt 0:00:31]} Ra4+ {[%emt 0:00:04]} 63. Ke3 {[%emt 0:00:47]} Ra3+ {[%emt 0:00:16]} 64. Kf4 {[%emt 0:00:08]} Rxh3 {[%emt 0:00:19]} 65. f6 {[%emt 0:00:57]} Kxc6 {[%emt 0:00:31]} 66. f7 {[%emt 0:00:12]} Rh8 {[%emt 0:00:11]} 67. g5 {[%emt 0:00:09]} Rf8 {[%emt 0:00:37]} 68. g6 {[%emt 0:00:06]} Kd6 {[%emt 0:00:44]} 69. Kg5 {[%emt 0:00:11]} Ke6 {[%emt 0:00:14]} 70. g7 {[%emt 0:00:21]} Kxf7 {[%emt 0:00:06]} 71. gxf8=Q+ {[%emt 0:00:07]} Kxf8 {[%emt 0:00:05]} 1/2-1/2

[Event "FIDE WCCC Girls-10 2024"]
[Site "Montesilvano"]
[Date "2024.11.20"]
[Round "6.32"]
[White "Khelfallah, Ikhlas"]
[Black "Mandukhai, Munkhbat"]
[Result "0-1"]
[Annotator "NA RC"]
[ECO "C55"]
[WhiteElo "1449"]
[BlackElo "1645"]
[PlyCount "64"]
[EventDate "2024.11.18"]
[EventType "swiss"]
[EventCountry "ITA"]
[SourceTitle "playchess.com"]
[Source "ChessBase"]
[SourceQuality "1"]
[TimeControl "5400+30"]

1. e4 {[%emt 0:00:07]} e5 {[%emt 0:00:05]} 2. Nf3 {[%emt 0:00:20]} Nc6 {[%emt 0:00:06]} 3. Bc4 {[%emt 0:00:18]} Nf6 {[%emt 0:00:07]} 4. d3 {[%emt 0:00:44]} h6 {[%emt 0:00:05]} 5. c3 {[%emt 0:00:26]} d6 {[%emt 0:00:17]} 6. Bb3 {[%emt 0:00:47]} g6 {[%emt 0:00:12]} 7. h3 {[%emt 0:01:08]} Bg7 {[%emt 0:03:18]} 8. Nbd2 {[%emt 0:00:28]} O-O {[%emt 0:00:15]} 9. Nf1 {[%emt 0:00:43]} Kh7 {[%emt 0:00:36]} 10. g4 {[%emt 0:00:53]} Ne8 {[%emt 0:02:53]} 11. Bd2 {[%emt 0:04:31]} Be6 {[%emt 0:10:00]} 12. Bc2 {[%emt 0:00:10]} d5 {[%emt 0:00:21]} 13. Qe2 {[%emt 0:00:21]} Nd6 {[%emt 0:07:27]} 14. O-O-O {[%emt 0:06:50]} a5 {[%emt 0:05:28]} 15. Ng3 {[%emt 0:10:54]} dxe4 {[%emt 0:03:56]} 16. dxe4 {[%emt 0:02:58]} Bxa2 {[%emt 0:01:36]} 17. b3 {[%emt 0:04:14]} a4 {[%emt 0:00:36]} 18. bxa4 {[%emt 0:00:46]} Qe7 {[%emt 0:01:22]} 19. Kb2 {[%emt 0:09:56]} Nc4+ {[%emt 0:00:49]} 20. Qxc4 {[%emt 0:02:59]} Bxc4 {[%emt 0:01:38]} 21. Ra1 {[%emt 0:01:54]} Rfb8 {[%emt 0:01:45]} 22. Kc1 {[%emt 0:03:30]} b5 {[%emt 0:01:48]} 23. Kd1 {[%emt 0:02:59]} bxa4 {[%emt 0:01:31]} 24. Rxa4 {[%emt 0:00:37]} Rxa4 {[%emt 0:05:37]} 25. Bxa4 {[%emt 0:00:12]} Qa3 {[%emt 0:00:51]} 26. Bc2 {[%emt 0:02:48]} Qa1+ {[%emt 0:00:32]} 27. Bc1 {[%emt 0:00:10]} Rd8+ {[%emt 0:00:52]} 28. Nd2 {[%emt 0:00:23]} Qxc3 {[%emt 0:00:43]} 29. h4 {[%emt 0:01:12]} Bb3 {[%emt 0:01:31]} 30. Ke1 {[%emt 0:04:37]} Qxc2 {[%emt 0:00:29]} 31. Ke2 {[%emt 0:00:19]} Nd4+ {[%emt 0:00:17]} 32. Ke3 {[%emt 0:00:56]} Qc3# {[%emt 0:00:10]} 0-1

[Event "FIDE WCCC Girls-10 2024"]
[Site "Montesilvano"]
[Date "2024.11.20"]
[Round "6.33"]
[White "Li, Wan Qin"]
[Black "Pambieri, Nicole"]
[Result "1-0"]
[Annotator "NA RC"]
[ECO "D07"]
[WhiteElo "1628"]
[BlackElo "1482"]
[PlyCount "49"]
[EventDate "2024.11.18"]
[EventType "swiss"]
[EventCountry "ITA"]
[SourceTitle "playchess.com"]
[Source "ChessBase"]
[SourceQuality "1"]
[TimeControl "5400+30"]

1. Nf3 {[%emt 0:00:01]} Nc6 {[%emt 0:00:12]} 2. d4 {[%emt 0:00:09]} d5 {[%emt 0:05:27]} 3. c4 {[%emt 0:00:19]} e6 {[%emt 0:03:25]} 4. Bf4 {[%emt 0:01:29]} Nf6 {[%emt 0:01:10]} 5. Nc3 {[%emt 0:01:05]} Be7 {[%emt 0:01:24]} 6. e3 {[%emt 0:00:55]} O-O {[%emt 0:00:34]} 7. a3 {[%emt 0:01:29]} a5 {[%emt 0:01:50]} 8. Bd3 {[%emt 0:01:38]} Bd7 {[%emt 0:00:55]} 9. cxd5 {[%emt 0:05:52]} Nxd5 {[%emt 0:03:20]} 10. Nxd5 {[%emt 0:00:47]} exd5 {[%emt 0:00:10]} 11. Qb3 {[%emt 0:01:32]} Bc8 {[%emt 0:14:02]} 12. O-O {[%emt 0:02:21]} Rb8 {[%emt 0:22:04]} 13. Rac1 {[%emt 0:02:09]} Be6 {[%emt 0:09:19]} 14. Rfd1 {[%emt 0:08:29]} Bd6 {[%emt 0:01:32]} 15. Ng5 {[%emt 0:04:28]} Bxf4 {[%emt 0:04:29]} 16. Bxh7+ {[%emt 0:00:39]} Kh8 {[%emt 0:00:11]} 17. exf4 {[%emt 0:00:10]} Bg4 {[%emt 0:16:57]} 18. Qg3 {[%emt 0:05:26]} Bxd1 {[%emt 0:09:45]} 19. Qh4 {[%emt 0:00:58]} Bh5 {[%emt 0:00:41]} 20. Qxh5 {[%emt 0:00:32]} g6 {[%emt 0:00:14]} 21. Bxg6+ {[%emt 0:00:09]} Kg7 {[%emt 0:00:09]} 22. Qh7+ {[%emt 0:00:10]} Kf6 {[%emt 0:00:07]} 23. Bxf7 {[%emt 0:00:09]} Ne7 {[%emt 0:01:11]} 24. Qh6+ {[%emt 0:00:18]} Kf5 {[%emt 0:00:18]} 25. Qe6+ {[%emt 1:01:46]} 1-0

[Event "FIDE WCCC Girls-10 2024"]
[Site "Montesilvano"]
[Date "2024.11.20"]
[Round "6.34"]
[White "Xin, Lisa J."]
[Black "Babii, Oriiana"]
[Result "1-0"]
[Annotator "NA RC"]
[ECO "D04"]
[WhiteElo "1602"]
[BlackElo "1481"]
[PlyCount "76"]
[EventDate "2024.11.18"]
[EventType "swiss"]
[EventCountry "ITA"]
[SourceTitle "playchess.com"]
[Source "ChessBase"]
[SourceQuality "1"]
[TimeControl "5400+30"]

1. d4 {[%emt 0:00:01]} d5 {[%emt 0:00:13]} 2. Nf3 {[%emt 0:00:07]} Nf6 {[%emt 0:00:22]} 3. e3 {[%emt 0:00:08]} c5 {[%emt 0:00:30]} 4. b3 {[%emt 0:00:08]} cxd4 {[%emt 0:00:18]} 5. exd4 {[%emt 0:00:15]} Nc6 {[%emt 0:01:47]} 6. Bb2 {[%emt 0:00:12]} Bg4 {[%emt 0:00:37]} 7. Nbd2 {[%emt 0:07:16]} e6 {[%emt 0:00:29]} 8. a3 {[%emt 0:02:24]} Be7 {[%emt 0:03:30]} 9. Bd3 {[%emt 0:00:41]} O-O {[%emt 0:00:52]} 10. O-O {[%emt 0:01:13]} Qb6 {[%emt 0:01:29]} 11. Re1 {[%emt 0:04:24]} Bd6 {[%emt 0:02:41]} 12. c4 {[%emt 0:03:50]} Bf4 {[%emt 0:02:56]} 13. b4 {[%emt 0:10:44]} Rac8 {[%emt 0:05:00]} 14. c5 {[%emt 0:07:34]} Qc7 {[%emt 0:00:38]} 15. Qc2 {[%emt 0:04:23]} Bxd2 {[%emt 1:16:38]} 16. Nxd2 {[%emt 0:01:43]} Qf4 {[%emt 0:00:00]} 17. g3 {[%emt 0:08:38]} Qc7 {[%emt 0:00:00]} 18. b5 {[%emt 0:05:39]} Ne7 {[%emt 0:00:00]} 19. a4 {[%emt 0:02:20]} Bh3 {[%emt 0:00:00]} 20. Nf3 {[%emt 0:03:41]} Nf5 {[%emt 0:00:00]} 21. Ne5 {[%emt 0:03:22]} Qd8 {[%emt 0:00:00]} 22. Qe2 {[%emt 0:05:51]} Qa5 {[%emt 0:00:00]} 23. Rec1 {[%emt 0:03:05]} Ne4 {[%emt 0:00:00]} 24. Bxe4 {[%emt 0:04:23]} dxe4 {[%emt 0:00:00]} 25. Bc3 {[%emt 0:03:52]} Qd8 {[%emt 0:00:00]} 26. Qxe4 {[%emt 0:00:28]} Qg5 {[%emt 0:00:00]} 27. Rd1 {[%emt 0:06:19]} h5 {[%emt 0:00:00]} 28. Qxb7 {[%emt 0:05:25]} Rcd8 {[%emt 0:00:00]} 29. Bd2 {[%emt 0:02:58]} Qf6 {[%emt 0:00:00]} 30. Bc3 {[%emt 0:00:00]} Qg5 {[%emt 0:00:00]} 31. Bd2 {[%emt 0:01:00]} Qf6 {[%emt 0:00:00]} 32. Bf4 {[%emt 0:03:00]} Nxd4 {[%emt 0:01:29]} 33. Nd7 {[%emt 0:00:28]} Rxd7 {[%emt 0:03:34]} 34. Qxd7 {[%emt 0:00:09]} Ne2+ {[%emt 0:00:25]} 35. Kh1 {[%emt 0:00:10]} g5 {[%emt 0:01:45]} 36. Qd3 {[%emt 0:01:57]} Nxf4 {[%emt 0:02:15]} 37. gxf4 {[%emt 0:00:06]} Qxf4 {[%emt 0:00:58]} 38. Qxh3 {[%emt 0:01:36]} e5 {[%emt 0:01:04]} 1-0

[Event "FIDE WCCC Girls-10 2024"]
[Site "Montesilvano"]
[Date "2024.11.20"]
[Round "6.35"]
[White "Gastaldo, Agathe"]
[Black "Mamarasulova, Yasmina"]
[Result "1/2-1/2"]
[Annotator "NA RC"]
[ECO "B34"]
[WhiteElo "1589"]
[BlackElo "1444"]
[PlyCount "26"]
[EventDate "2024.11.18"]
[EventType "swiss"]
[EventCountry "ITA"]
[SourceTitle "playchess.com"]
[Source "ChessBase"]
[SourceQuality "1"]
[TimeControl "5400+30"]

1. e4 c5 2. Nf3 Nc6 3. d4 cxd4 4. Nxd4 g6 5. Nc3 Bg7 6. Be3 Nf6 7. Nxc6 bxc6 8. e5 Ng8 9. f4 Nh6 10. h3 Nf5 11. Bf2 h5 12. Qd2 Qc7 13. O-O-O Rb8 1/2-1/2